bitfinex-derivatives/quotes_SOLF0:USTF0_20230701
["timestamp","ask_amount","ask_price","bid_price","bid_amount"]
[1688173390020,33.62,18.756,18.744,57.73038315]
[1688173390213,33.62,18.756,18.745,57.73038315]
[1688173390417,0.87154861,18.752,18.748,0.77314658]
[1688173390623,0.87154861,18.752,18.739,87.7858]
[1688173390818,33.62,18.756,18.74,57.74506601]
[1688173391719,0.8330667,18.75,18.746,0.82163309]
[1688173392721,0.8330667,18.75,18.729,177.06976498]
[1688173392722,33.62,18.747,18.729,177.06976498]
[1688173392924,33.62,18.747,18.73,57.78623647]
[1688173393724,0.81858764,18.74,18.737,0.06567707]
[1688173393927,0.760948,18.74,18.737,0.06567707]
[1688173394228,0.760948,18.74,18.73,57.78623647]
[1688173394622,0.760948,18.74,18.731,57.78623647]
[1688173394822,33.62,18.743,18.732,57.78623647]
[1688173395130,0.72824247,18.739,18.733,57.78623647]
[1688173395330,0.72824247,18.739,18.734,57.78623647]
[1688173395529,0.72824247,18.739,18.726,33.56]
[1688173395530,0.80679342,18.738,18.735,57.78623647]
[1688173395721,0.80679342,18.738,18.736,57.78623647]
[1688173396025,0.74506451,18.739,18.737,57.78623647]
[1688173396227,0.74686569,18.74,18.726,33.56]
[1688173396428,0.87798789,18.735,18.727,57.81079858]
[1688173397024,0.87798789,18.735,18.728,57.81079858]
[1688173397227,0.87798789,18.735,18.729,57.81079858]
[1688173397419,0.87798789,18.735,18.73,57.81079858]
[1688173397621,0.87798789,18.735,18.731,57.81079858]
[1688173397823,52.8291,18.746,18.731,57.81079858]
[1688173398024,60.63777206,18.747,18.731,57.81079858]
[1688173398025,60.63777206,18.747,18.732,56.9527]
[1688173398229,58.0402,18.746,18.732,56.9527]
[1688173398727,0.83122764,18.741,18.732,56.9527]
[1688173398935,0.83122764,18.741,18.737,0.86170997]
[1688173399820,33.29,18.753,18.736,33.62]
[1688173400428,59.42740261,18.753,18.736,33.62]
[1688173400917,0.82212813,18.746,18.743,0.81932647]
[1688173401117,0.76374157,18.746,18.743,0.81932647]
[1688173402828,0.76374157,18.746,18.743,34.43932647]
[1688173403029,57.1021,18.758,18.743,34.43932647]
[1688173403227,1.96134016,18.757,18.743,33.62]
[1688173403428,35.58134016,18.757,18.74,33.62]
[1688173403728,1.96134016,18.756,18.74,33.62]
[1688173403932,0.7569166,18.75,18.746,0.72017987]
[1688173408636,26.98808973,18.758,18.746,33.56]
[1688173408834,52.8062,18.762,18.749,33.62]
[1688173409039,1.96110623,18.761,18.749,33.62]
[1688173409535,1.96110623,18.761,18.746,33.62]
[1688173409736,0.72417739,18.755,18.742,33.62]
[1688173409936,233.62,18.759,18.742,33.62]
[1688173410134,1.96134294,18.758,18.742,33.62]
[1688173410634,33.56,18.757,18.74,33.62]
[1688173410839,0.76410605,18.75,18.74,33.62]
[1688173411940,0.76410605,18.75,18.743,0.83395538]
[1688173412139,0.7829466,18.748,18.745,0.79282773]
[1688173412445,0.77845532,18.748,18.745,0.79282773]
[1688173414339,60.25314084,18.759,18.745,34.41282773]
[1688173414537,60.25314084,18.759,18.745,33.62]
[1688173414742,26.96314084,18.759,18.748,33.62]
[1688173414937,89.9023,18.768,18.751,33.62]
[1688173415239,0.83894368,18.761,18.751,33.62]
[1688173415634,0.83894368,18.761,18.754,0.82657448]
[1688173420447,137.5002,18.774,18.76,82.08]
[1688173420647,1.96006824,18.773,18.76,82.08]
[1688173420844,1.96006824,18.773,18.764,82.37]
[1688173421348,0.78454167,18.77,18.767,0.83653198]
[1688173421548,1.96006824,18.769,18.768,82.04]
[1688173421740,56.3156,18.778,18.768,82.04]
[1688173421937,1.95953528,18.777,18.768,82.04]
[1688173422347,1.95953528,18.776,18.768,82.04]
[1688173422547,1.95953528,18.779,18.766,81.81]
[1688173422739,0.78233536,18.774,18.771,0.76940919]
[1688173423152,26.09909632,18.78,18.771,0.76940919]
[1688173423352,1.95919005,18.779,18.772,82.08]
[1688173423749,1.95919005,18.778,18.772,82.08]
[1688173423941,81.78,18.784,18.772,82.08]
[1688173424139,1.95900476,18.783,18.772,82.08]
[1688173424339,0.61894888,18.779,18.776,0.71993419]
[1688173424544,1.95900476,18.778,18.776,0.71993419]
[1688173425250,0.61894888,18.779,18.776,0.71993419]
[1688173425850,1.95892926,18.778,18.776,0.71993419]
[1688173430156,1.95892926,18.778,18.776,82.52993419]
[1688173430444,83.30297092,18.785,18.776,82.52993419]
[1688173430651,1.95877625,18.784,18.776,82.52993419]
[1688173432050,1.95877625,18.784,18.776,0.71993419]
[1688173432252,1.95877625,18.784,18.779,82.08]
[1688173432448,56.3307,18.791,18.78,0.81856517]
[1688173432755,1.95847694,18.79,18.78,0.81856517]
[1688173433552,81.78,18.783,18.77,81.81]
[1688173433754,1.95847694,18.782,18.77,81.81]
[1688173434654,0.73879315,18.778,18.774,0.80311162]
[1688173438270,1.95924945,18.777,18.76,33.64]
[1688173438464,33.63,18.774,18.757,33.38]
[1688173438657,1.95924945,18.773,18.757,33.38]
[1688173439157,0.86834629,18.767,18.763,0.82758081]
[1688173440166,0.86834629,18.767,18.753,33.38]
[1688173440368,33.56,18.767,18.75,91.5343]
[1688173441155,0.81261116,18.76,18.757,0.7533774]
[1688173441358,0.86424499,18.76,18.757,0.7533774]
[1688173443557,0.86424499,18.76,18.75,91.5343]
[1688173444664,0.86424499,18.76,18.753,0.87679249]
[1688173445669,0.86424499,18.76,18.755,33.64]
[1688173446164,0.86424499,18.76,18.753,0.87679249]
[1688173446767,0.86424499,18.76,18.754,33.38]
[1688173446961,56.4097,18.772,18.757,33.38]
[1688173447161,56.4097,18.772,18.759,33.64]
[1688173447364,83.29711603,18.772,18.759,33.64]
[1688173447970,0.72605221,18.767,18.764,0.83779765]
[1688173451375,33.64,18.768,18.751,33.64]
[1688173451566,33.56,18.764,18.747,33.56]
[1688173451769,33.56,18.764,18.748,57.70417029]
[1688173452170,33.64,18.769,18.752,33.56]
[1688173452365,0.74845764,18.762,18.759,0.80973138]
[1688173452570,0.73624454,18.762,18.759,0.80973138]
[1688173456683,0.73624454,18.762,18.749,33.56]
[1688173456881,33.64,18.766,18.749,33.56]
[1688173457484,26.9094707,18.769,18.755,33.64]
[1688173457682,0.81152506,18.764,18.76,0.76842989]
[1688173461185,0.81152506,18.764,18.749,33.38]
[1688173461383,33.64,18.766,18.749,33.38]
[1688173461583,1.96043439,18.765,18.749,33.38]
[1688173462086,0.86965295,18.759,18.755,0.57408382]
[1688173476696,0.86965295,18.759,18.744,54.0456]
[1688173476897,33.64,18.76,18.745,57.70520159]
[1688173477796,0.75060195,18.754,18.745,57.70520159]
[1688173481808,34.38060195,18.754,18.737,33.64]
[1688173482111,0.82410477,18.747,18.738,57.74942517]
[1688173482409,0.87600233,18.744,18.739,57.74942517]
[1688173482608,0.87600233,18.744,18.74,57.74942517]
[1688173482910,0.87600233,18.744,18.734,33.56]
[1688173483110,0.87600233,18.744,18.735,57.75138054]
[1688173485313,0.87600233,18.744,18.736,57.75138054]
[1688173485609,0.87811299,18.742,18.731,89.7485]
[1688173485809,0.87811299,18.742,18.732,57.77872594]
[1688173486610,0.87811299,18.742,18.734,33.38]
[1688173486904,0.87811299,18.742,18.735,57.77872594]
[1688173489906,0.87811299,18.742,18.736,33.38]
[1688173493312,0.87811299,18.742,18.737,57.77212011]
[1688173493511,0.87811299,18.742,18.736,33.38]
[1688173495820,0.87811299,18.742,18.737,82.15]
[1688173497118,57.6843,18.75,18.74,82.15]
[1688173498112,0.75671507,18.747,18.743,0.73919749]
[1688173500316,0.75671507,18.747,18.736,82.51]
[1688173500523,82.51,18.749,18.736,82.51]
[1688173501426,0.87909796,18.744,18.741,0.14097778]
[1688173502621,83.38909796,18.744,18.733,53.1332]
[1688173503416,54.0803,18.743,18.733,53.1332]
[1688173503612,54.0803,18.743,18.73,81.8]
[1688173503818,0.74882807,18.74,18.73,81.8]
[1688173504717,0.74882807,18.74,18.731,57.78235483]
[1688173505317,0.74882807,18.74,18.73,81.8]
[1688173506522,0.74882807,18.74,18.731,57.80033815]
[1688173509727,82.51,18.739,18.728,53.9146]
[1688173509929,0.84889329,18.735,18.729,57.80987326]
[1688173511731,0.84889329,18.735,18.73,57.80987326]
[1688173512028,0.82997848,18.734,18.723,135.18]
[1688173512218,0.82997848,18.734,18.724,57.80944441]
[1688173513233,0.82997848,18.734,18.73,82.51]
[1688173513421,0.82997848,18.734,18.723,383.42]
[1688173513422,26.29809464,18.743,18.733,82.15]
[1688173513933,57.0846,18.746,18.733,82.15]
[1688173514428,0.87725268,18.741,18.738,0.72533988]
[1688173517733,0.87725268,18.741,18.739,82.11]
[1688173517928,81.89,18.751,18.739,82.11]
[1688173518127,54.493,18.754,18.742,82.15]
[1688173518925,0.83819181,18.75,18.746,0.81652881]
[1688173522933,0.83819181,18.75,18.739,82.51]
[1688173523137,81.50633726,18.754,18.733,82.51]
[1688173523138,82.51,18.745,18.733,82.51]
[1688173524140,82.51,18.745,18.737,0.79910979]
[1688173524141,0.81451582,18.741,18.737,0.79910979]
[1688173524540,82.51,18.751,18.738,82.51]
[1688173524933,109.52333726,18.754,18.742,82.11]
[1688173525741,0.79775595,18.75,18.746,0.7995484]
[1688173528843,81.82,18.749,18.737,82.51]
[1688173530039,0.8337928,18.745,18.741,0.80567921]
[1688173530234,0.8337928,18.745,18.733,82.51]
[1688173530542,81.89,18.746,18.733,82.51]
[1688173530839,82.51,18.743,18.73,82.51]
[1688173531435,0.74198379,18.738,18.735,0.10084486]
[1688173533641,82.56198379,18.738,18.726,82.15]
[1688173533838,82.56198379,18.738,18.727,57.78808061]
[1688173533839,81.82,18.738,18.727,57.78808061]
[1688173534334,82.51,18.736,18.723,82.51]
[1688173534536,0.85470756,18.731,18.72,82.11]
[1688173534743,0.85470756,18.731,18.721,57.82980144]
[1688173534933,81.89,18.73,18.721,57.82980144]
[1688173535133,81.89,18.73,18.717,82.51]
[1688173535334,0.82263587,18.725,18.718,57.84048712]
[1688173536235,0.82263587,18.725,18.709,26.28065083]
[1688173536236,82.03,18.722,18.709,82.11]
[1688173536440,0.73912277,18.717,18.709,82.11]
[1688173539133,0.73912277,18.717,18.712,82.51]
[1688173539333,0.72463033,18.716,18.712,82.51]
[1688173539542,0.77381801,18.716,18.712,82.51]
[1688173542340,0.77381801,18.716,18.707,83.23]
[1688173543041,0.77381801,18.716,18.705,82.11]
[1688173543336,0.75058999,18.712,18.705,82.11]
[1688173544640,82.57058999,18.712,18.7,57.5397]
[1688173544841,0.85695802,18.708,18.7,57.5397]
[1688173545246,0.85695802,18.708,18.704,82.11]
[1688173546134,26.54747188,18.718,18.707,82.51]
[1688173546533,139.8829,18.72,18.707,82.51]
[1688173547147,0.78194675,18.715,18.712,0.76734115]
[1688173547343,0.78194675,18.715,18.704,82.15]
[1688173547541,82.51,18.717,18.704,82.15]
[1688173548239,0.86031597,18.712,18.707,82.51]
[1688173548432,0.86031597,18.712,18.709,0.09332512]
[1688173549046,0.86031597,18.712,18.709,0.00370825]
[1688173549250,57.3729,18.72,18.709,82.51370825]
[1688173550047,139.8829,18.72,18.709,0.00370825]
[1688173550258,81.82,18.717,18.709,0.00370825]
[1688173550440,0.78080609,18.716,18.709,0.00370825]
[1688173553550,0.78080609,18.716,18.709,82.11370825]
[1688173555253,0.78080609,18.716,18.712,82.51]
[1688173555946,82.15,18.723,18.712,82.51]
[1688173557151,0.84960437,18.719,18.716,0.79362997]
[1688173558641,0.84960437,18.719,18.712,82.51]
[1688173559653,0.84960437,18.719,18.714,0.85048642]
[1688173559854,0.83800816,18.718,18.715,0.84935334]
[1688173560154,0.83800816,18.718,18.715,0.00186125]
[1688173575654,27.00463803,18.721,18.717,82.15]
[1688173575964,54.015,18.728,18.717,82.15]
[1688173576557,0.76940942,18.724,18.721,0.81549679]
[1688173576962,0.76940942,18.724,18.714,82.51]
[1688173577166,82.51,18.727,18.714,82.51]
[1688173577966,0.85754873,18.722,18.714,82.51]
[1688173578563,0.85754873,18.722,18.707,330.04]
[1688173578564,0.85754873,18.722,18.712,82.51]
[1688173578767,0.78646501,18.719,18.712,82.51]
[1688173580169,0.78646501,18.719,18.707,81.8]
[1688173580375,0.73253426,18.715,18.707,81.8]
[1688173581759,0.73253426,18.715,18.7,257.5397]
[1688173581760,0.73253426,18.715,18.705,82.15]
[1688173581968,0.85066364,18.712,18.705,82.15]
[1688173585373,0.85066364,18.712,18.71,82.51]
[1688173585576,0.72888008,18.713,18.71,82.51]
[1688173585777,0.86420866,18.713,18.71,82.51]
[1688173588671,0.86420866,18.713,18.701,200.0]
[1688173588871,0.85977789,18.709,18.707,82.11]
[1688173589066,0.85639798,18.71,18.707,82.11]
[1688173589271,0.72161601,18.71,18.707,82.11]
[1688173591977,53.3826,18.721,18.709,82.51]
[1688173592181,26.52269431,18.722,18.712,82.11]
[1688173592681,82.51,18.728,18.715,82.51]
[1688173592975,0.80809937,18.723,18.72,0.7462655]
[1688173596580,0.80809937,18.723,18.72,0.00213812]
[1688173599587,27.56484517,18.723,18.72,0.00213812]
[1688173599788,83.31809937,18.723,18.71,82.51]
[1688173599983,82.51,18.719,18.706,82.51]
[1688173600494,329.93,18.723,18.703,82.15]
[1688173600495,81.89,18.716,18.703,82.15]
[1688173600787,0.79334222,18.711,18.703,82.15]
[1688173609186,27.87226968,18.711,18.703,82.15]
[1688173609486,0.79334222,18.711,18.703,82.15]
[1688173610990,0.79334222,18.711,18.701,82.51]
[1688173611191,0.83334333,18.708,18.701,82.51]
[1688173612496,0.83334333,18.708,18.697,82.51]
[1688173612689,0.82644098,18.704,18.698,57.77024585]
[1688173613095,0.82644098,18.704,18.699,57.77024585]
[1688173613296,0.82644098,18.704,18.695,82.51]
[1688173613599,0.82644098,18.704,18.696,57.7718479]
[1688173620094,82.85644098,18.704,18.696,57.7718479]
[1688173620304,82.85644098,18.704,18.692,82.11]
[1688173620498,0.81333755,18.7,18.692,82.11]
[1688173621902,0.81333755,18.7,18.689,82.51]
[1688173622102,0.74676092,18.696,18.69,57.79782778]
[1688173622501,0.74676092,18.696,18.687,55.4652]
[1688173622705,0.74676092,18.696,18.688,57.80025905]
[1688173623407,0.74676092,18.696,18.65,53.01]
[1688173623408,81.82,18.694,18.682,82.11]
[1688173623611,0.75058959,18.69,18.683,57.82972581]
[1688173623806,0.84916839,18.688,18.684,57.82972581]
[1688173624002,0.84916839,18.688,18.685,57.82972581]
[1688173624308,0.84916839,18.688,18.64,922.44173405]
[1688173624309,81.89,18.686,18.672,82.51]
[1688173624507,0.77530435,18.681,18.673,57.88390486]
[1688173624899,0.77530435,18.681,18.674,57.88390486]
[1688173625106,0.77530435,18.681,18.675,57.88390486]
[1688173625312,0.77530435,18.681,18.67,82.51]
[1688173625495,0.77530435,18.681,18.671,57.89957744]
[1688173627397,0.77530435,18.681,18.672,82.11]
[1688173627905,0.77530435,18.681,18.667,330.04]
[1688173627906,0.77530435,18.681,18.676,82.51]
[1688173628107,81.82,18.691,18.679,82.51]
[1688173628410,82.03,18.689,18.676,82.51]
[1688173629112,0.75067081,18.684,18.681,0.7314927]
[1688173630712,82.03,18.695,18.682,82.51]
[1688173630906,81.82,18.697,18.685,82.51]
[1688173631118,26.53431863,18.699,18.688,82.15]
[1688173631307,82.51,18.7,18.688,82.15]
[1688173631908,0.74993753,18.696,18.692,0.72465596]
[1688173632916,82.51,18.704,18.692,0.72465596]
[1688173633117,138.5877,18.707,18.694,82.51]
[1688173634008,0.73399336,18.702,18.699,0.8248131]
[1688173641515,82.62399336,18.702,18.689,82.51]
[1688173641819,82.51,18.699,18.686,82.15]
[1688173642510,82.51,18.699,18.691,0.77571851]
[1688173642711,0.77754769,18.694,18.691,0.77571851]
[1688173644120,81.89,18.693,18.681,82.51]
[1688173644914,0.81908834,18.689,18.685,0.77102759]
[1688173649324,82.84908834,18.689,18.685,0.0049307]
[1688173650021,0.81908834,18.689,18.685,0.0049307]
[1688173652215,0.81908834,18.689,18.686,82.51]
[1688173652621,81.89,18.698,18.686,82.51]
[1688173653328,81.89,18.698,18.676,55.3411]
[1688173653329,82.51,18.694,18.682,82.51]
[1688173653827,0.77643161,18.69,18.682,82.51]
[1688173658532,81.89,18.689,18.676,137.4511]
[1688173658724,0.80647719,18.684,18.676,137.4511]
[1688173658921,0.80647719,18.684,18.679,82.51]
[1688173659530,0.80647719,18.684,18.661,200.0]
[1688173659731,0.744558,18.677,18.674,82.51]
[1688173659927,0.74539826,18.677,18.674,82.51]
[1688173660332,0.74539826,18.677,18.671,82.51]
[1688173662434,0.74539826,18.677,18.675,82.51]
[1688173664539,330.69,18.692,18.675,82.51]
[1688173664540,82.51,18.692,18.675,82.51]
[1688173664732,81.82,18.687,18.675,82.51]
[1688173665630,0.81890265,18.683,18.679,0.79165431]
[1688173665937,0.81890265,18.683,18.679,0.00212412]
[1688173666433,81.82,18.681,18.679,0.00212412]
[1688173670731,81.82,18.681,18.667,81.79]
[1688173670937,81.89,18.678,18.667,81.79]
[1688173671738,0.82109198,18.674,18.667,81.79]
[1688173671933,0.82109198,18.674,18.665,82.51]
[1688173672135,0.73071386,18.671,18.665,82.51]
[1688173672341,0.73071386,18.671,18.633,52.00367157]
[1688173672342,0.73071386,18.671,18.659,82.11]
[1688173672539,0.77628178,18.667,18.656,82.51]
[1688173672731,0.86994516,18.663,18.656,82.51]
[1688173672933,82.62,18.676,18.661,82.51]
[1688173673132,82.62,18.676,18.664,82.51]
[1688173673333,82.62,18.676,18.651,357.21787242]
[1688173673334,82.62,18.676,18.661,82.15]
[1688173673932,0.83533131,18.67,18.667,0.76814752]
[1688173676035,26.7680504,18.678,18.669,82.51]
[1688173676544,200.0,18.679,18.66,54.1748]
[1688173676839,81.89,18.673,18.66,82.51]
[1688173677036,0.83459361,18.668,18.665,0.8024813]
[1688173677836,0.83459361,18.668,18.656,82.11]
[1688173678041,82.51,18.669,18.656,82.11]
[1688173678234,330.04,18.676,18.654,82.15]
[1688173678436,82.51,18.666,18.654,82.15]
[1688173678842,0.81784628,18.662,18.658,0.86683217]
[1688173679040,0.81784628,18.662,18.654,82.15]
[1688173679233,0.81784628,18.662,18.651,82.51]
[1688173679442,81.89,18.663,18.651,82.51]
[1688173679935,82.51,18.66,18.648,82.51]
[1688173680140,0.73676225,18.656,18.648,82.51]
[1688173681143,0.73676225,18.656,18.644,82.81]
[1688173681338,83.34900288,18.652,18.639,82.51]
[1688173681545,0.87094702,18.647,18.639,82.51]
[1688173681746,0.87094702,18.647,18.642,82.51]
[1688173681937,82.03,18.659,18.646,82.51]
[1688173682138,82.51,18.662,18.649,82.15]
[1688173682637,81.89,18.659,18.646,82.51]
[1688173682837,281.89,18.659,18.646,82.51]
[1688173683038,82.65495642,18.654,18.641,82.15]
[1688173683238,81.89,18.654,18.641,82.15]
[1688173684043,0.83289381,18.649,18.646,0.07738654]
[1688173684343,0.83289381,18.649,18.646,0.00847428]
[1688173684646,81.89,18.647,18.646,0.00847428]
[1688173685247,81.89,18.647,18.635,82.51]
[1688173685447,82.51,18.644,18.632,82.51]
[1688173685837,33.92,18.647,18.63,33.92]
[1688173686042,33.92,18.647,18.631,9.8562148]
[1688173686244,0.86021085,18.641,18.635,33.92]
[1688173686440,0.82902437,18.64,18.636,9.8562148]
[1688173686642,58.177,18.653,18.638,33.92]
[1688173686850,58.177,18.653,18.641,33.92]
[1688173687145,33.73,18.662,18.644,33.92]
[1688173687352,33.73,18.665,18.647,33.92]
[1688173687542,27.08510405,18.662,18.647,33.92]
[1688173687743,0.86905,18.656,18.653,0.7820421]
[1688173687950,0.86139484,18.656,18.653,0.7820421]
[1688173693949,33.73,18.661,18.644,33.61]
[1688173694553,200.0,18.659,18.644,33.61]
[1688173694750,33.92,18.658,18.641,33.92]
[1688173694950,0.8744784,18.651,18.638,33.92]
[1688173695156,0.8507291,18.646,18.638,33.92]
[1688173695842,0.8507291,18.646,18.641,33.92]
[1688173696151,33.73,18.661,18.644,33.92]
[1688173696356,87.4312,18.664,18.647,33.92]
[1688173696554,53.7012,18.664,18.65,33.61]
[1688173697150,0.81500051,18.659,18.655,0.78526229]
[1688173699651,87.4312,18.664,18.647,33.92]
[1688173700755,0.76578931,18.657,18.654,0.06532314]
[1688173700956,0.78238197,18.657,18.654,0.06532314]
[1688173701651,0.78238197,18.657,18.642,89.6447]
[1688173701852,233.92,18.659,18.642,33.92]
[1688173702755,0.72981992,18.652,18.642,33.92]
[1688173703960,0.72981992,18.652,18.637,33.92]
[1688173704157,0.74354445,18.646,18.637,33.92]
[1688173704354,0.74354445,18.646,18.64,33.92]
[1688173704554,33.92,18.657,18.64,33.92]
[1688173705647,33.92,18.657,18.647,0.75182807]
[1688173705648,0.73447429,18.65,18.647,0.75182807]
[1688173705856,0.78735454,18.65,18.647,0.75182807]
[1688173708057,26.81019102,18.659,18.642,33.92]
[1688173708263,33.92,18.66,18.642,33.92]
[1688173708459,33.92,18.66,18.643,54.2969]
[1688173708758,33.92,18.663,18.645,33.92]
[1688173708960,0.84133236,18.656,18.652,0.80446384]
[1688173711061,200.0,18.659,18.64,33.61]
[1688173711953,33.92,18.656,18.64,33.61]
[1688173712161,0.80870989,18.65,18.646,0.73479066]
[1688173713358,33.92,18.669,18.649,33.61]
[1688173713564,33.92,18.672,18.655,33.92]
[1688173713759,55.3166,18.676,18.66,33.92]
[1688173713954,55.3166,18.676,18.663,33.61]
[1688173713955,1.97023897,18.675,18.663,33.61]
[1688173714157,33.92,18.683,18.666,33.92]
[1688173714357,33.92,18.683,18.669,33.92]
[1688173714756,0.80162753,18.678,18.674,0.73899935]
[1688173718163,26.88961222,18.683,18.674,0.73899935]
[1688173718568,52.9743,18.684,18.674,0.73899935]
[1688173718962,80.31321537,18.684,18.674,0.73899935]
[1688173719366,0.78990581,18.681,18.674,0.73899935]
[1688173720561,0.78990581,18.681,18.675,33.92]
[1688173720763,33.73,18.692,18.671,200.0]
[1688173720764,33.92,18.695,18.678,33.61]
[1688173721071,1.96828585,18.694,18.678,33.61]
[1688173721572,33.92,18.683,18.665,33.92]
[1688173721874,0.79320654,18.676,18.66,33.92]
[1688173722065,28.73296276,18.682,18.648,33.61]
[1688173722066,33.73,18.665,18.648,33.61]
[1688173722570,33.92,18.669,18.651,33.61]
[1688173722875,33.92,18.669,18.658,0.76483719]
[1688173722876,0.75335375,18.662,18.658,0.76483719]
[1688173723269,200.0,18.66,18.645,33.92]
[1688173723464,233.73,18.66,18.642,33.92]
[1688173723663,57.0741,18.659,18.642,33.92]
[1688173724265,0.74542411,18.652,18.649,0.88233131]
[1688173724460,0.78135588,18.652,18.649,0.88233131]
[1688173730875,26.48647193,18.661,18.645,33.92]
[1688173731070,26.48647193,18.661,18.648,33.92]
[1688173731272,88.1278,18.665,18.648,33.92]
[1688173732078,0.74327146,18.658,18.655,0.74873493]
[1688173732376,0.812337,18.658,18.655,0.74873493]
[1688173738977,0.812337,18.658,18.642,33.92]
[1688173739177,33.92,18.659,18.642,33.92]
[1688173739675,60.71672,18.659,18.642,33.92]
[1688173739873,0.86706833,18.652,18.649,0.75888505]
[1688173740071,0.79757114,18.652,18.649,0.75888505]
[1688173744278,0.79757114,18.652,18.639,33.92]
[1688173744477,26.67066656,18.653,18.639,33.92]
[1688173744776,33.92,18.656,18.639,33.92]
[1688173745179,0.75096964,18.649,18.646,0.73257096]
[1688173745383,0.78038472,18.649,18.646,0.73257096]
[1688173746684,58.1251,18.655,18.646,0.73257096]
[1688173747073,27.04485857,18.656,18.646,0.73257096]
[1688173747480,58.1251,18.655,18.646,0.73257096]
[1688173747687,0.75712848,18.652,18.649,0.80339098]
[1688173750591,26.7912172,18.662,18.649,0.80339098]
[1688173750778,26.7912172,18.662,18.651,200.0]
[1688173750974,160.77171929,18.679,18.661,33.61]
[1688173751179,55.7089,18.677,18.661,33.61]
[1688173751480,0.80195263,18.671,18.667,0.76067193]
[1688173752896,741.09822113,18.689,18.667,0.76067193]
[1688173752897,33.92,18.684,18.667,34.68067193]
[1688173753094,33.92,18.684,18.661,200.0]
[1688173753095,1.96896792,18.683,18.673,33.61]
[1688173753289,55.7089,18.685,18.673,33.61]
[1688173753484,1.96887318,18.684,18.673,33.61]
[1688173753983,0.87544323,18.68,18.677,0.77011773]
[1688173754391,33.73,18.697,18.679,33.92]
[1688173754690,56.3774,18.696,18.679,33.92]
[1688173754890,56.3774,18.696,18.671,200.0]
[1688173754891,56.3774,18.696,18.685,33.92]
[1688173755087,1.96824184,18.695,18.685,33.92]
[1688173755595,0.88237327,18.692,18.688,0.85614244]
[1688173755782,1.96824184,18.691,18.688,0.85614244]
[1688173755989,27.21813632,18.696,18.688,0.85614244]
[1688173756295,1.96801488,18.695,18.69,33.92]
[1688173756486,56.3774,18.703,18.693,33.92]
[1688173756686,1.96737838,18.702,18.693,33.92]
[1688173756884,0.34096617,18.699,18.696,0.72970235]
[1688173758086,34.26096617,18.699,18.681,33.92]
[1688173758289,33.92,18.693,18.676,33.92]
[1688173758491,28.71678838,18.692,18.676,33.92]
[1688173758681,1.96737838,18.691,18.676,33.92]
[1688173759193,0.78012324,18.685,18.682,0.76821909]
[1688173759393,27.06285063,18.699,18.684,33.61]
[1688173759593,1.96796391,18.698,18.684,33.61]
[1688173759791,1.96796391,18.698,18.688,33.61]
[1688173759985,33.92,18.709,18.691,33.92]
[1688173760190,1.96755034,18.708,18.694,33.61]
[1688173760389,0.2900448,18.703,18.699,0.79399003]
[1688173761194,2.25759514,18.703,18.699,0.79399003]
[1688173761400,1.96755034,18.702,18.699,0.79399003]
[1688173761598,33.92,18.714,18.699,0.79399003]
[1688173761799,1.96754454,18.713,18.697,33.92]
[1688173762193,233.92,18.71,18.692,33.92]
[1688173762392,1.96754454,18.709,18.692,33.92]
[1688173762594,1.96754454,18.709,18.699,0.81103156]
[1688173764399,1.96754454,18.708,18.699,0.81103156]
[1688173764604,1.96754454,18.707,18.702,0.74884527]
[1688173764796,1.96754454,18.706,18.702,0.74884527]
[1688173765003,1.96754454,18.705,18.702,0.74884527]
[1688173765303,1.96754454,18.704,18.702,0.74884527]
[1688173765500,1.96754454,18.703,18.702,0.74884527]